Cogmind - Beta 13 @@@ ROGUE MODE // 2024.04.07 @ 12:03:47 Player: MetallicDragon Result: Destroyed by X-82 Rainmaker with Heavy Flak Cannon Performance ------------- Evolutions (6) 3000 Regions Visited (14) 2800 Robots Destroyed (114) 570 Value Destroyed (3612) 3612 Prototype IDs (28) 560 Alien Tech Used (0) 0 Bonus (2153) 2153 TOTAL SCORE: 12695 Bonus ------- High Alert Combat Kills 370 Follower Combat Kills 281 Entered DSFs 1000 Met Imprinter 300 Was Imprinted 300 Friendly Fire -98 Cogmind --------- Core Integrity 0/1150 Matter 34/300 Energy 99/100 System Corruption 1% Temperature Cool (0) Movement Core (50) Location -4/Factory Parts ------- > --- POWER (2) -------- (None) > --- PROPULSION (6) --- (None) > --- UTILITY (9) ------ Advanced Signal Interpreter > --- WEAPON (2) ------- (None) > --- INVENTORY (5) ---- Neutrino Core Launcher Loader Remote Datajack Peak State ------------ > --- POWER ------------ Micro Nuclear Core Light Angular Momentum Engine > --- PROPULSION ------- Gravmag System Gravmag System Improved Gravmag System Gravmag Array > --- UTILITY ---------- Large Storage Unit Structural Scanner Experimental Optical Array Experimental Signal Interpreter Advanced Terrain Scanner Phase Shifter Cloaking Device Experimental System Shield > --- WEAPON ----------- Molecular Deconstructor > --- INVENTORY -------- Angular Momentum Engine Gravmag System Gravmag System Advanced Weight Redist. System Advanced Signal Interpreter Advanced ECM Suite Improved Utility Shielding Improved Proton Missile Launcher Heavy Rocket Launcher Great Maul [Rating: 95] Favorites ----------- Power Micro Nuclear Core Engine Light Ion Engine Power Core Micro Nuclear Core Reactor Light Antimatter Reactor Propulsion Light Treads Treads Light Treads Leg Cargo Legs Wheel Centrium Wheel Hover Unit Gravmag System Flight Unit Field Propulsion Array Utility Structural Scanner Device Structural Scanner Storage Large Storage Unit Processor Experimental Optical Array Hackware Experimental System Shield Protection Improved Light Armor Plating Weapon Light Assault Rifle Energy Gun EM Pulse Gun Energy Cannon Subdweller Beam Cannon Ballistic Gun Light Assault Rifle Ballistic Cannon Battle Cannon Launcher Rocket Launcher Special Weapon Molecular Deconstructor Impact Weapon Great Maul Slashing Weapon Katana Special Melee Weapon Improved Datajack Build | -11 -10 -10 -10 -8 -7 -7 -6 -6 -6 -6 -5 -5 -5 -4 ------- Run | Yrd Mat Min Sub Mat Fac DSF Fac Low Low Zio Pro Fac DSF Fac Slots Evolved 12 | . . . . 4 2 . 2 . . . . 2 . 2 Power 1 | . . . . . 1 . . . . . . . . . Propulsion 4 | . . . . 2 1 . . . . . . . . 1 Utility 7 | . . . . 2 . . 2 . . . . 2 . 1 Weapon . | . . . . . . . . . . . . . . . Parts Attached 185 | 6 14 6 26 46 4 5 14 11 1 10 2 5 9 26 Power 20 | 1 1 1 1 4 1 . 3 1 . . 1 1 1 4 Engine 13 | 1 1 1 . 4 1 . 1 1 . . 1 1 1 . Core 5 | . . . 1 . . . 2 . . . . . . 2 Reactor 2 | . . . . . . . . . . . . . . 2 Propulsion 37 | 2 . . 3 13 1 2 3 1 1 . . . 2 9 Treads 4 | 2 . . 2 . . . . . . . . . . . Leg 6 | . . . 1 4 . . . . . . . . . 1 Wheel 2 | . . . . . . . . . . . . . . 2 Hover 22 | . . . . 8 1 2 3 1 1 . . . 2 4 Flight 3 | . . . . 1 . . . . . . . . . 2 Utility 51 | 1 6 . 5 10 2 . 4 3 . 8 1 4 2 5 Device 26 | . 4 . 2 5 1 . 2 2 . 1 1 3 2 3 Storage 2 | 1 1 . . . . . . . . . . . . . Processor 11 | . 1 . . . 1 . . 1 . 7 . . . 1 Hackware 1 | . . . . . . . . . . . . 1 . . Protection 11 | . . . 3 5 . . 2 . . . . . . 1 Artifact . | . . . . . . . . . . . . . . . Weapon 77 | 2 7 5 17 19 . 3 4 6 . 2 . . 4 8 Energy Gun 24 | 1 2 . 3 7 . 1 3 2 . . . . . 5 Energy Cannon 3 | . . . 2 1 . . . . . . . . . . Ballistic Gun 10 | 1 2 2 4 . . . . . . 1 . . . . Ballistic Cannon 2 | . . . 2 . . . . . . . . . . . Launcher 20 | . 3 2 1 5 . 2 . 1 . . . . 3 3 Special Weapon 8 | . . 1 4 . . . . 2 . 1 . . . . Impact Weapon 6 | . . . . 5 . . . . . . . . 1 . Slashing Weapon 3 | . . . 1 1 . . . 1 . . . . . . Piercing Weapon . | . . . . . . . . . . . . . . . Special Melee Weapon 1 | . . . . . . . 1 . . . . . . . Unidentified Prototypes 18 | . . . . 6 . . 1 1 . 6 . 1 . 3 Corrupted Parts 3 | . . . 2 . . . . . . . 1 . . . System Corruption 11 | . . . 3 . . . . . . . 8 . . . Parts Lost 57 | . . 2 5 4 . 6 . 1 1 . 1 . 18 19 Power 8 | . . 1 1 1 . 1 . . . . . . 2 2 Propulsion 20 | . . . 2 . . 3 . 1 1 . . . 4 9 Utility 16 | . . . 1 1 . 1 . . . . 1 . 9 3 Weapon 13 | . . 1 1 2 . 1 . . . . . . 3 5 Highest Loss Streak 12 | . . 2 2 2 . 6 . 1 1 . 1 . 12 9 To Critical Strikes . | . . . . . . . . . . . . . . . Average Slot Usage (%) 83 | . 98 99 88 81 92 79 83 91 86 86 86 88 58 27 Engine 6 | . 14 13 5 6 15 12 7 . 6 6 6 5 1 . Core 3 | . . . 5 2 . . 4 11 6 6 6 5 2 . Treads 8 | . 28 28 13 . . . . . . . . . . . Leg 3 | . . . 4 14 . . . . . . . . . . Hover 9 | . . . . 10 38 28 25 25 26 26 26 23 13 1 Device 15 | . 12 14 15 14 23 19 14 25 26 20 20 23 16 4 Storage 9 | . 14 14 13 9 7 7 6 6 6 6 6 5 5 . Processor 2 | . . . . . . . . 2 6 12 13 11 6 5 Protection 3 | . . . 3 10 . . 10 4 . . . . . 4 Energy Gun 4 | . 13 . 5 8 . 1 2 4 . . . . . . Energy Cannon 1 | . . . 4 . . . . . . . . . . . Ballistic Gun 3 | . 13 13 3 . . . . . . . . . . . Ballistic Cannon 1 | . . . 5 . . . . . . . . . . . Launcher 3 | . . 12 5 3 . 2 . . . . . . . 1 Special Weapon 1 | . . . 1 . . . . 1 6 6 6 5 . . Naked Turns . | . . . . . . . . . . . . . . . Heaviest Build 54 | 11 31 29 42 54 42 49 53 49 44 44 48 47 49 24 Greatest Support 85 | 40 40 40 55 85 44 53 58 49 48 48 48 48 48 30 Greatest Overweight (x) 7 | 3 . . 1 1 . 1 . 1 1 . . . 7 3 Average Overweight (x) . | . . . . . . . . . . . . . . . Largest Inventory Capacity 15 | 8 15 15 15 15 15 15 15 15 15 15 15 15 15 5 Average Capacity 13 | 7 10 15 15 15 15 15 15 15 15 15 15 15 14 5 Most Carried 15 | 1 14 15 15 15 14 15 15 15 15 15 13 12 10 5 Average Carried 11 | . 8 12 12 14 13 12 14 13 14 13 12 10 4 3 Final Capacity 15 | 8 15 15 15 15 15 15 15 15 15 15 15 15 5 5 Final Carried 15 | 1 14 15 12 15 13 15 14 15 15 13 12 10 2 4 Class Distribution -------------------- 99% | Mutant Dominant Class ---------------- Mutant | -10/Materials Mutant | -10/Mines Mutant | -10/Subcaves Mutant | -8/Materials Mutant | -7/Factory Mutant | -7/DSF Mutant | -6/Factory Mutant | -6/Lower Caves Mutant | -6/Lower Caves Mutant | -6/Zion Mutant | -5/Proximity Caves Mutant | -5/Factory Infiltrator-Mutant | -5/DSF Mutant | -4/Factory Resources | -11 -10 -10 -10 -8 -7 -7 -6 -6 -6 -6 -5 -5 -5 -4 ----------- Run | Yrd Mat Min Sub Mat Fac DSF Fac Low Low Zio Pro Fac DSF Fac Matter Collected 2868 | 229 198 129 441 724 . 58 213 401 18 38 119 . 9 291 Remotely . | . . . . . . . . . . . . . . . Salvage Created 3263 | . 535 143 330 1001 . 149 184 176 . . . . 129 616 Parts 235 | . 43 11 31 63 . 9 19 5 . . . . 16 38 Haulers Intercepted 6 | . 2 . . 4 . . . . . . . . . . Recyclers Shooed 3 | . . . . 2 . . . . . . . . . 1 Parts Field Recycled . | . . . . . . . . . . . . . . . Retrieved Matter . | . . . . . . . . . . . . . . . Parts Self-Destructed 26 | . . . 18 . . . . 5 . . 3 . . . Prevented 3 | . . . . . . . . . . . 3 . . . Kills | -11 -10 -10 -10 -8 -7 -7 -6 -6 -6 -6 -5 -5 -5 -4 ------- Run | Yrd Mat Min Sub Mat Fac DSF Fac Low Low Zio Pro Fac DSF Fac Combat Hostiles Destroyed 74 | . 8 5 10 24 . 4 . 4 . . 1 . 4 14 Melee 7 | . . . . 2 . 2 . 2 . . . . . 1 Guns 11 | . 3 3 2 2 . . . 1 . . . . . . Cannons 4 | . . . 4 . . . . . . . . . . . AOE 47 | . 5 2 3 19 . 2 . . . . . . 4 12 Classes Destroyed 19 | . 4 2 2 5 . 2 1 1 . . 1 . . 1 Worker 10 | . . . . 3 . . 5 . . . . . . 2 Builder 7 | . . . . 1 . . 1 . . . . . . 5 Tunneler 2 | . . 1 . . . . 1 . . . . . . . Hauler 6 | . 2 . . 4 . . . . . . . . . . Recycler 5 | . . . . 4 . . . . . . . . . 1 Mechanic 1 | . . . . . . . 1 . . . . . . . Operator 2 | . 1 . . . . . 1 . . . . . . . Watcher 7 | . 3 . . 4 . . . . . . . . . . Swarmer 13 | . . 1 2 6 . . . . . . . . . 4 Cutter 8 | . . . . . . 3 . . . . . . 3 2 Grunt 24 | . 8 4 . 9 . . . 2 . . . . 1 . Duelist 1 | . . . . 1 . . . . . . . . . . Sentry 10 | . . . 1 7 . . . 1 . . . . . 1 Specialist 1 | . . . . . . 1 . . . . . . . . Hunter 6 | . . . . 1 . . . . . . . . . 5 Programmer 2 | . . . . . . . . 1 . . . . . 1 Heavy 1 | . . . . . . . . . . . . . . 1 Behemoth 1 | . . . . . . . . . . . 1 . . . Subdweller 7 | . . . 7 . . . . . . . . . . . Best Kill Streak 13 | . 3 3 2 13 . 4 3 2 . . 1 . 3 7 Combat Bots Only 9 | . 2 2 2 9 . 4 . 2 . . 1 . 3 5 Max Kills in Single Turn 5 | . 2 2 1 2 . 1 1 1 . . 1 . 2 5 Gunslinging . | . . . . . . . . . . . . . . . Exploded 5 | . 2 1 1 2 . 1 . . . . . . 2 5 Melee 1 | . . . . 1 . 1 . 1 . . . . . 1 Uniques/NPCs Destroyed . | . . . . . . . . . . . . . . . Combat | -11 -10 -10 -10 -8 -7 -7 -6 -6 -6 -6 -5 -5 -5 -4 -------- Run | Yrd Mat Min Sub Mat Fac DSF Fac Low Low Zio Pro Fac DSF Fac Hostile Shots Fired 822 | . 20 24 55 107 . 69 4 91 10 . 39 . 90 313 Missed 338 | . 3 6 21 35 . 28 1 37 7 . 17 . 23 160 Damage Taken 9490 | . 239 250 840 1144 . 745 63 814 59 . 332 . 2281 2723 Core 2745 | . 48 65 119 176 . 156 . 130 22 . 38 . 836 1155 Absorbed by Shields 61 | . . . . . . . . . . . . . 61 . Redirected to Shielding 146 | . . . . 45 . . . . . . . . . 101 Regen/Repaired (Parts) 424 | . . . . . . . 14 . . 410 . . . . Core Remaining (%) 57 | 100 . . 7 68 . 77 . . . . 77 . 16 . Volleys Fired 225 | . 33 28 53 47 . 3 . 12 2 . 11 . 7 29 Largest 2 | . 2 2 2 2 . 1 . 1 1 . 1 . 1 2 Hottest 176 | . 60 100 140 122 . 39 . 85 . . . . 43 176 Shots Fired 296 | . 53 37 76 62 . 3 . 12 2 . 11 . 7 33 Gun 153 | . 49 29 32 24 . . . 3 . . . . . 16 Cannon 30 | . . . 30 . . . . . . . . . . . Launcher 82 | . 4 3 7 38 . 3 . 4 . . . . 6 17 Special 31 | . . 5 7 . . . . 5 2 . 11 . 1 . Kinetic 57 | . 20 20 17 . . . . . . . . . . . Thermal 74 | . . 5 26 24 . . . 3 . . . . . 16 Explosive 78 | . 4 3 7 38 . 3 . 4 . . . . 3 16 Electromagnetic 68 | . 29 9 26 . . . . . . . . . 3 1 Robot Hit Streak 12 | . 11 6 12 5 . . . 5 1 . 7 . 2 11 Robot Miss Streak 4 | . 3 3 2 3 . 2 . 4 . . 1 . 2 2 Penetration Max . | . . . . . . . . . . . . . . . Secondary Targets . | . . . . . . . . . . . . . . . Shots Hit Robots 202 | . 33 16 36 46 . 7 11 17 1 . 10 . 4 21 Core Hits 201 | . 26 14 19 68 . 12 8 6 . . . . 13 35 Critical Kills 1 | . . . . 1 . . . . . . . . . . Critical Parts Destroyed 5 | . . 1 . 4 . . . . . . . . . . Critical Strikes 11 | . . 1 . 5 . 2 . 1 . . . . . 2 Burn 2 | . . . . . . . . 1 . . . . . 1 Destroy 1 | . . 1 . . . . . . . . . . . . Smash 6 | . . . . 5 . . . . . . . . . 1 Sever 2 | . . . . . . 2 . . . . . . . . Melee Attacks 118 | . . . 1 37 . 12 21 14 . . . . 15 18 Impact 57 | . . . . 24 . . . . . . . . 15 18 Slashing 61 | . . . 1 13 . 12 21 14 . . . . . . Piercing . | . . . . . . . . . . . . . . . Sneak Attacks 13 | . . . . 4 . 1 8 . . . . . . . Combat Hostiles 1 | . . . . . . 1 . . . . . . . . Follow-up Attacks . | . . . . . . . . . . . . . . . Damage Inflicted 12119 | . 640 395 1190 3873 . 620 640 440 . . . . 543 3778 Guns 1393 | . 383 152 263 243 . . . 44 . . . . . 308 Cannons 359 | . . . 359 . . . . . . . . . . . Explosions 8322 | . 257 243 568 2886 . 386 . 109 . . . . 543 3330 Melee 2045 | . . . . 744 . 234 640 287 . . . . . 140 Ramming . | . . . . . . . . . . . . . . . Kinetic 447 | . 81 113 253 . . . . . . . . . . . Thermal 1663 | . 56 61 200 243 . . . 44 . . . . . 1059 Explosive 7197 | . 201 182 568 2808 . 386 . 109 . . . . 442 2501 Electromagnetic 767 | . 302 39 169 78 . . . . . . . . 101 78 Impact 817 | . . . . 677 . . . . . . . . . 140 Slashing 1228 | . . . . 67 . 234 640 287 . . . . . . Piercing . | . . . . . . . . . . . . . . . Highest Corruption 17 | . 3 3 6 3 . . . . . . 8 . 17 1 Average Corruption 3 | . 2 3 3 3 . . . . . . 8 . 8 1 Corruption Purged . | . . . . . . . . . . . . . . . Corruption Blocked . | . . . . . . . . . . . . . . . Effects 76 | . 7 10 37 17 . . . . . . . . 4 1 Message Errors 24 | . 2 4 11 5 . . . . . . . . 2 . Matter Fused 14 | . 1 2 7 3 . . . . . . . . 1 . Heat Flow Errors 11 | . . 1 7 3 . . . . . . . . . . Energy Discharges 9 | . 1 2 5 1 . . . . . . . . . . Parts Rejected 2 | . . . . 1 . . . . . . . . . 1 Parts Fused 1 | . . . 1 . . . . . . . . . . . Data Loss (minor) 7 | . 2 1 3 1 . . . . . . . . . . Data Loss (major) 2 | . 1 . 1 . . . . . . . . . . . Misfires 1 | . . . 1 . . . . . . . . . . . Alerts 3 | . . . . 3 . . . . . . . . . . Misdirections 1 | . . . . . . . . . . . . . 1 . Weapon Failures 1 | . . . 1 . . . . . . . . . . . Overload Shots . | . . . . . . . . . . . . . . . Overflow Damage 868 | . . . 23 451 . . 67 20 . . . . 5 302 Projectiles . | . . . . . . . . . . . . . . . Explosions 444 | . . . 23 94 . . . 20 . . . . 5 302 Melee 424 | . . . . 357 . . 67 . . . . . . . Knockbacks 3 | . . . 1 2 . . . . . . . . . . Impact 2 | . . . . 2 . . . . . . . . . . Kinetic 1 | . . . 1 . . . . . . . . . . . Secondary . | . . . . . . . . . . . . . . . Self-Inflicted Damage 886 | . 16 . 110 120 . 16 . 49 . . . . 235 340 Shots 24 | . 1 . 3 4 . 1 . 2 . . . . 6 7 Rammed . | . . . . . . . . . . . . . . . Targets Rammed . | . . . . . . . . . . . . . . . Kicked . | . . . . . . . . . . . . . . . Crushed . | . . . . . . . . . . . . . . . Highest Temperature 348 | . 82 129 256 171 . . 2 179 29 . 6 . . 348 Average Temperature 57 | . 26 50 61 41 . . 2 63 21 . 6 . . 140 Received Heat Transfer 1474 | . 120 132 48 459 . 45 12 159 55 . 54 . 273 117 Effects 1 | . . . . . . . . . . . . . . 1 Energy Bleed 1 | . . . . . . . . . . . . . . 1 Siege Activations . | . . . . . . . . . . . . . . . Robots Corrupted 1 | . . . 1 . . . . . . . . . . . Combat Hostiles 1 | . . . 1 . . . . . . . . . . . Parts Fried 7 | . . . 3 4 . . . . . . . . . . Impact Corruptions 10 | . . . . 10 . . . . . . . . . . Robots Melted 1 | . . . . . . . . . . . . . . 1 Combat Hostiles 1 | . . . . . . . . . . . . . . 1 Parts Melted 2 | . . . . 1 . . . . . . . . . 1 Heat Transferred 2177 | . . 100 259 518 . . . 200 . . . . . 1100 Parts Sabotaged . | . . . . . . . . . . . . . . . Parts Stolen . | . . . . . . . . . . . . . . . Parts Stripped . | . . . . . . . . . . . . . . . Power Chain Reactions 3 | . 1 1 . . . . . . . . . . 1 . Alert | -11 -10 -10 -10 -8 -7 -7 -6 -6 -6 -6 -5 -5 -5 -4 ------- Run | Yrd Mat Min Sub Mat Fac DSF Fac Low Low Zio Pro Fac DSF Fac Peak Influence 902 | . 135 160 . 902 396 386 356 . . . . 494 417 872 Initial 494 | . . 52 . . 396 277 202 . . . . 494 345 205 Average 310 | . 65 68 . 586 396 333 280 . . . . 494 375 414 Maximum Alert Level 3 | . . . . 3 1 1 1 . . . . 2 2 3 Low Security (%) 43 | 100 100 100 . 11 . . 19 . . . . . . . Level 1 24 | . . . . 2 100 100 80 . . . . . 79 57 Level 2 20 | . . . . 50 . . . . . . . 100 20 31 Level 3 11 | . . . . 34 . . . . . . . . . 10 Level 4 . | . . . . . . . . . . . . . . . Level 5 . | . . . . . . . . . . . . . . . High Security . | . . . . . . . . . . . . . . . Max Security . | . . . . . . . . . . . . . . . Squads Dispatched 17 | . 1 . . 3 . 3 . . . . . . 2 8 Investigation . | . . . . . . . . . . . . . . . Extermination 1 | . . . . . . . . . . . . . . 1 Reinforcement 15 | . 1 . . 2 . 3 . . . . . . 2 7 Assault 1 | . . . . 1 . . . . . . . . . . Garrison . | . . . . . . . . . . . . . . . Intercept . | . . . . . . . . . . . . . . . Searches Triggered . | . . . . . . . . . . . . . . . Construction Impeded 3 | . . . . 2 . . . . . . . . . 1 Haulers Reinforced 1 | . . . . . . . . . . . . . . 1 Active Scanning Responses . | . . . . . . . . . . . . . . . Cargo Convoy Interrupts . | . . . . . . . . . . . . . . . Stealth | -11 -10 -10 -10 -8 -7 -7 -6 -6 -6 -6 -5 -5 -5 -4 --------- Run | Yrd Mat Min Sub Mat Fac DSF Fac Low Low Zio Pro Fac DSF Fac Distress Signals 4 | . 1 . . 3 . . . . . . . . . . Communications Jammed . | . . . . . . . . . . . . . . . Distress Signals . | . . . . . . . . . . . . . . . Times Spotted 174 | . 13 6 14 50 . 7 4 12 10 . 12 . 15 31 Peak Tracking Total 10 | . 2 2 3 7 . 5 1 5 7 . 5 . 7 10 Tactical Retreats 26 | . . . . 9 . 3 2 2 3 . . . 3 4 Traps | -11 -10 -10 -10 -8 -7 -7 -6 -6 -6 -6 -5 -5 -5 -4 ------- Run | Yrd Mat Min Sub Mat Fac DSF Fac Low Low Zio Pro Fac DSF Fac Traps Triggered 6 | . 2 . 2 . . . . . . . . . 2 . Indirectly . | . . . . . . . . . . . . . . . Trap Hack Attempts . | . . . . . . . . . . . . . . . Triggered . | . . . . . . . . . . . . . . . Disarmed . | . . . . . . . . . . . . . . . Reprogrammed . | . . . . . . . . . . . . . . . Reused . | . . . . . . . . . . . . . . . Traps Extracted . | . . . . . . . . . . . . . . . Installed . | . . . . . . . . . . . . . . . Triggered 2 | . 1 . . . . . . 1 . . . . . . Machines | -11 -10 -10 -10 -8 -7 -7 -6 -6 -6 -6 -5 -5 -5 -4 ---------- Run | Yrd Mat Min Sub Mat Fac DSF Fac Low Low Zio Pro Fac DSF Fac Machines Disabled 26 | . 3 1 1 7 . . 4 . . . . . 1 9 Max in Single Turn 4 | . 1 1 1 1 . . 1 . . . . . 1 4 Garrison Access 2 | . . . . 1 . . 1 . . . . . . . Machines Repaired . | . . . . . . . . . . . . . . . Machines Dismantled . | . . . . . . . . . . . . . . . Machines Sabotaged . | . . . . . . . . . . . . . . . Overloaded Fab Kills . | . . . . . . . . . . . . . . . Hacking | -11 -10 -10 -10 -8 -7 -7 -6 -6 -6 -6 -5 -5 -5 -4 --------- Run | Yrd Mat Min Sub Mat Fac DSF Fac Low Low Zio Pro Fac DSF Fac Machines Accessed 26 | . 4 . 2 8 1 . 7 1 1 . . 1 . 1 Terminals 14 | . 3 . . 6 1 . 3 . . . . 1 . . Fabricators . | . . . . . . . . . . . . . . . Repair Stations 3 | . 1 . . . . . 1 . . . . . . 1 Recycling Units 1 | . . . . . . . 1 . . . . . . . Scanalyzers 2 | . . . . 1 . . 1 . . . . . . . Garrison Access 2 | . . . . 1 . . 1 . . . . . . . Total Hacks 49 | . 7 . 6 15 1 . 13 4 1 . . 1 . 1 Successful 31 | . 1 . 6 8 1 . 9 4 1 . . 1 . . Failed 18 | . 6 . . 7 . . 4 . . . . . . 1 Catastrophic 3 | . 1 . . 1 . . . . . . . . . 1 Database Lockouts . | . . . . . . . . . . . . . . . Manual 19 | . 1 . . 9 . . . 1 . . . 2 . 6 Terminals 20 | . 4 . . 11 1 . 3 . . . . 1 . . Fabricators . | . . . . . . . . . . . . . . . Repair Stations 6 | . 3 . . . . . 2 . . . . . . 1 Recycling Units 4 | . . . . . . . 4 . . . . . . . Scanalyzers 4 | . . . . 2 . . 2 . . . . . . . Garrison Access 4 | . . . . 2 . . 2 . . . . . . . Terminal Hacks 20 | . . . 6 5 1 . 2 4 1 . . 1 . . Record 10 | . . . 5 . . . 1 4 . . . . . . Open Door 1 | . . . . . . . . . 1 . . . . . Open DSF 3 | . . . . . 1 . 1 . . . . 1 . . Branch Access Points 1 | . . . . 1 . . . . . . . . . . Unreport Threat 1 | . . . . 1 . . . . . . . . . . Hauler Manifests 2 | . . . . 2 . . . . . . . . . . Zone Layout 1 | . . . . 1 . . . . . . . . . . Derelict Proto ID Bank 1 | . . . 1 . . . . . . . . . . . Fabricator Hacks . | . . . . . . . . . . . . . . . Repair Station Hacks 3 | . 1 . . . . . 2 . . . . . . . Scan Component 2 | . 1 . . . . . 1 . . . . . . . Repair 1 | . . . . . . . 1 . . . . . . . Recycling Unit Hacks 2 | . . . . . . . 2 . . . . . . . Process 1 | . . . . . . . 1 . . . . . . . Report Inventory 1 | . . . . . . . 1 . . . . . . . Scanalyzer 4 | . . . . 2 . . 2 . . . . . . . Insert Component 2 | . . . . 1 . . 1 . . . . . . . Analyze 2 | . . . . 1 . . 1 . . . . . . . Garrison Access Hacks 2 | . . . . 1 . . 1 . . . . . . . Seal Access 2 | . . . . 1 . . 1 . . . . . . . Unauthorized Hacks . | . . . . . . . . . . . . . . . Terminals . | . . . . . . . . . . . . . . . Fabricators . | . . . . . . . . . . . . . . . Repair Stations . | . . . . . . . . . . . . . . . Recycling Units . | . . . . . . . . . . . . . . . Scanalyzers . | . . . . . . . . . . . . . . . Garrison Access . | . . . . . . . . . . . . . . . Data Cores Recovered 1 | . . . . . . . 1 . . . . . . . Used . | . . . . . . . . . . . . . . . Hacking Detections 15 | . 4 . . 7 . . 3 . . . . . . 1 Full Trace Events 1 | . 1 . . . . . . . . . . . . . Feedback Events 1 | . 1 . . . . . . . . . . . . . Corruption 1 | . 1 . . . . . . . . . . . . . Feedback Blocked . | . . . . . . . . . . . . . . . Robot Schematics Acquired 3 | . . . . . . . . . . 3 . . . . Robots Built . | . . . . . . . . . . . . . . . Authchips . | . . . . . . . . . . . . . . . Time . | . . . . . . . . . . . . . . . Total Robot Build Rating . | . . . . . . . . . . . . . . . Part Schematics Acquired 17 | . . . . 1 . . 1 . . 15 . . . . Parts Built . | . . . . . . . . . . . . . . . Authchips . | . . . . . . . . . . . . . . . Time . | . . . . . . . . . . . . . . . Total Part Build Rating . | . . . . . . . . . . . . . . . Parts Repaired 1 | . . . . . . . 1 . . . . . . . Time 26 | . . . . . . . 26 . . . . . . . Parts Recycled . | . . . . . . . . . . . . . . . Recycled Matter 21 | . . . . . . . 21 . . . . . . . Retrieved Matter . | . . . . . . . . . . . . . . . Retrieved Components . | . . . . . . . . . . . . . . . Parts Scanalyzed 2 | . . . . 1 . . 1 . . . . . . . Part Schematics Acquired 2 | . . . . 1 . . 1 . . . . . . . Parts Damaged 1 | . . . . . . . 1 . . . . . . . Bothacking | -11 -10 -10 -10 -8 -7 -7 -6 -6 -6 -6 -5 -5 -5 -4 ------------ Run | Yrd Mat Min Sub Mat Fac DSF Fac Low Low Zio Pro Fac DSF Fac Used RIF Installer . | . . . . . . . . . . . . . . . Robots Hacked . | . . . . . . . . . . . . . . . Non-combat . | . . . . . . . . . . . . . . . Combat . | . . . . . . . . . . . . . . . Robot Hacks Applied . | . . . . . . . . . . . . . . . Relay Couplers Released . | . . . . . . . . . . . . . . . Fabnet Peak Effective % . | . . . . . . . . . . . . . . . Robots Rewired . | . . . . . . . . . . . . . . . Allies Hacked . | . . . . . . . . . . . . . . . Hacks Repelled . | . . . . . . . . . . . . . . . Allies | -11 -10 -10 -10 -8 -7 -7 -6 -6 -6 -6 -5 -5 -5 -4 -------- Run | Yrd Mat Min Sub Mat Fac DSF Fac Low Low Zio Pro Fac DSF Fac Total Allies 10 | . . 1 . . . . . . . 4 . . . 5 Largest Group 4 | . . 1 1 . . . . . . 4 4 . . 2 Highest-Rated Group 206 | . . 31 31 . . . . . . 156 156 . . 206 Highest-Rated Ally 103 | . . 31 31 . . . . . . 40 40 . . 103 Zionite Dispatches 3 | . . . . . . . . . . . . . . 3 Heavy 2 | . . . . . . . . . . . . . . 2 Thermal Resupply 1 | . . . . . . . . . . . . . . 1 Total Orders 1 | . . . . . . . . . . . . . . 1 DROP 1 | . . . . . . . . . . . . . . 1 Ally Attacks 67 | . . . 15 . . . . . . . 35 . . 17 Total Damage 2158 | . . . 317 . . . . . . . 552 . . 1289 Kills 11 | . . . 4 . . . . . . . 3 . . 4 Allies Corrupted 1 | . . . . . . . . . . . 1 . . . Allies Melted . | . . . . . . . . . . . . . . . Intel | -11 -10 -10 -10 -8 -7 -7 -6 -6 -6 -6 -5 -5 -5 -4 ------- Run | Yrd Mat Min Sub Mat Fac DSF Fac Low Low Zio Pro Fac DSF Fac Robot Analysis Total . | . . . . . . . . . . . . . . . Derelict Logs Recovered 9 | . . . 2 . . . . 1 2 2 2 . . . Drone Launches . | . . . . . . . . . . . . . . . Drone Recoveries . | . . . . . . . . . . . . . . . Exploration | -11 -10 -10 -10 -8 -7 -7 -6 -6 -6 -6 -5 -5 -5 -4 ------------- Run | Yrd Mat Min Sub Mat Fac DSF Fac Low Low Zio Pro Fac DSF Fac Turns Passed 8495 | 77 1010 657 2117 1265 15 142 499 560 342 616 301 33 161 700 Spaces Moved 7993 | 49 552 352 1129 1023 22 164 766 948 688 947 496 21 100 736 Core 142 | 27 . . . . . . . . . . . . 15 100 Treads 1541 | 22 552 352 615 . . . . . . . . . . . Legs 1065 | . . . 514 500 . . . . . . . . . 51 Wheels 81 | . . . . . . . . . . . . . . 81 Hover 4772 | . . . . 523 22 164 766 948 688 947 496 21 85 112 Flight 392 | . . . . . . . . . . . . . . 392 Fastest Speed 40 | 50 160 160 130 45 42 42 45 48 48 48 48 48 48 40 Average Speed 85 | 139 160 160 168 85 42 51 47 48 48 48 48 48 75 68 Slowest Speed 400 | 200 160 160 240 130 42 111 52 105 105 48 48 48 400 200 Overloaded Moves . | . . . . . . . . . . . . . . . Propulsion Burnouts . | . . . . . . . . . . . . . . . Robots Hopped . | . . . . . . . . . . . . . . . Cave-ins Triggered 3 | . . . . . . . . . . . . . 3 . Exploration Rate (%) 55 | 3 84 75 70 79 1 81 18 84 84 92 59 1 80 15 Regions Visited 14 Branch Regions 6 Pre-discovered Areas 4 | . . 1 1 . . . . 1 1 . . . . . Known Exits Taken 5 | . . . 1 . 1 . . . . 1 1 1 . . Unknown Exits Taken 7 | 1 1 1 . 1 . . 1 1 1 . . . . . Scrap Searched 25 | . . 2 4 . . . . 13 3 2 1 . . . Spaces Dug 79 | . . 5 . 26 . . 1 1 . . . . 14 32 Terrain Destroyed 673 | . 36 13 42 248 . 24 1 47 . . . . 65 197 Melee 46 | . . . . 20 . . 1 1 . . . . 14 10 Projectile 8 | . . 5 1 . . . . . . . . . . 2 AOE 619 | . 36 8 41 228 . 24 . 46 . . . . 51 185 Terrain Rammed . | . . . . . . . . . . . . . . . Walls Destroyed . | . . . . . . . . . . . . . . . Machines Disabled . | . . . . . . . . . . . . . . . Actions | -11 -10 -10 -10 -8 -7 -7 -6 -6 -6 -6 -5 -5 -5 -4 --------- Run | Yrd Mat Min Sub Mat Fac DSF Fac Low Low Zio Pro Fac DSF Fac Total 9121 | 55 625 402 1250 1294 27 203 869 1011 695 1109 536 41 148 856 Wait 363 | . 5 12 23 66 . . 41 7 . 137 26 16 1 29 Move 7977 | 48 551 351 1128 1022 21 163 765 947 687 946 495 20 97 736 Hop . | . . . . . . . . . . . . . . . Pick Up 119 | 1 18 3 7 36 1 12 14 9 3 4 1 . . 10 Fast Attach 52 | 6 1 2 4 10 . . 5 2 . 6 . . . 16 Attach 69 | . . 2 7 18 3 4 6 4 1 2 1 2 9 10 Detach 15 | . . . 1 7 . 1 1 1 . . . . 1 3 Swap 64 | . 13 2 15 18 1 1 3 5 . 2 1 3 . . Drop 102 | . 4 2 11 33 1 7 13 10 2 12 1 . 1 5 Fire 225 | . 33 28 53 47 . 3 . 12 2 . 11 . 7 29 Melee 118 | . . . 1 37 . 12 21 14 . . . . 15 18 Ram . | . . . . . . . . . . . . . . . Kick . | . . . . . . . . . . . . . . . Crush . | . . . . . . . . . . . . . . . Escape Stasis 17 | . . . . . . . . . . . . . 17 . Rewire . | . . . . . . . . . . . . . . . Trap . | . . . . . . . . . . . . . . . Miscellaneous . | . . . . . . . . . . . . . . . Route ------- -11/Scrapyard -10/Materials (discovered 5 exits: [*Mat x3] / [*Min x2]) -10/Mines (discovered 3 exits: [*Mat] / [*Exi] / *Sub) -10/Subcaves (discovered 3 exits: *Mat x2 / Rec) -8/Materials -7/Factory -7/DSF -6/Factory -6/Lower Caves -6/Lower Caves (discovered 2 exits: *Fac / [*Zio]) -6/Zion -5/Proximity Caves -5/Factory (discovered 3 exits: Fac / Upp / DSF) -5/DSF -4/Factory History --------- Turn | Location | Event 2 | -11/Scrapyard | Met Revision 17 8 | -11/Scrapyard | Discovered new exit (range 16) 78 | -11/Scrapyard | Entered Materials 301 | -10/Materials | Build established: Mutant 489 | -10/Materials | Discovered new exit (range 5) 636 | -10/Materials | Discovered new exit (range 9) 760 | -10/Materials | Discovered new exit (range 3) 1015 | -10/Materials | Discovered new exit (range 9) 1052 | -10/Materials | Discovered new exit (range 16) 1088 | -10/Materials | Entered Mines 1232 | -10/Mines | Discovered new exit (range 15) 1406 | -10/Mines | Received a Rocket Launcher from a helpful Derelict 1511 | -10/Mines | Deemed a non-threat by the Exiles lab entrance 1511 | -10/Mines | Discovered new exit (range 6) 1651 | -10/Mines | Escorted by a lone wolf Derelict 1671 | -10/Mines | Learned location of Storage (-7) 1720 | -10/Mines | Discovered new exit (range 4) 1745 | -10/Mines | Entered Subcaves 1745 | -10/Subcaves | Accompanied by 1 ally 1876 | -10/Subcaves | Shifting Twisted Machinery released Unknown Ballistic Gun 1882 | -10/Subcaves | Shifting Twisted Machinery released Battle Cannon 1983 | -10/Subcaves | Core integrity fell below 50% 2035 | -10/Subcaves | Learned location of Zion (-6) 2035 | -10/Subcaves | Met a Zionite searching for "candidates" 2702 | -10/Subcaves | A swath of the cavern ceiling suddenly collapsed 3062 | -10/Subcaves | Visited 4L-MR0's lab 3112 | -10/Subcaves | Found Cargo Legs 3114 | -10/Subcaves | Attached Cargo Legs, gained temporary slots: Utility x2 3191 | -10/Subcaves | Visited Clippyterm 3195 | -10/Subcaves | Identified exit to Materials 3195 | -10/Subcaves | Identified exit to Recycling 3298 | -10/Subcaves | A swath of the cavern ceiling suddenly collapsed 3437 | -10/Subcaves | Learned Materials trap positions 3506 | -10/Subcaves | Shifting Twisted Machinery released Sub. Beam Cannon 3506 | -10/Subcaves | Shifting Twisted Machinery released Spk. Treads 3677 | -10/Subcaves | Core integrity fell below 20% 3862 | -10/Subcaves | Entered Materials 3862 | -8/Materials | Evolved 4 slots: Propulsion x2, Utility x2 3863 | -8/Materials | Loaded intel: 13 trap records 4071 | -8/Materials | Destroyed 9 combat bots 4662 | -8/Materials | First assault squad dispatched 5094 | -8/Materials | Discovered new exit (range 15) 5127 | -8/Materials | Entered Factory 5127 | -7/Factory | Evolved 2 slots: Power x1, Propulsion x1 5142 | -7/Factory | Identified exit to DSF 5142 | -7/Factory | Entered DSF 5172 | -7/DSF | Additional patrols routed to DSF 5265 | -7/DSF | Lost 6 parts (1p3n1u1w) 5278 | -7/DSF | Discovered new exit (range 11) 5284 | -7/DSF | Entered Factory 5284 | -6/Factory | Evolved 2 slots: Utility x2 5397 | -6/Factory | Discovered new exit (range 11) 5545 | -6/Factory | Repaired Structural Scanner 5611 | -6/Factory | Spotted B-75 Beast 5783 | -6/Factory | Entered Lower Caves 6163 | -6/Lower Caves | Discovered new exit (range 11) 6192 | -6/Lower Caves | Acquired the password to a Derelict Tinkerer's latest research 6195 | -6/Lower Caves | Found Prototype Special Weapon 6195 | -6/Lower Caves | Identified Molecular Deconstructor 6235 | -6/Lower Caves | Attracted the attention of an 0b10 checkpoint 6266 | -6/Lower Caves | Learned Factory emergency access door positions 6279 | -6/Lower Caves | Learned Extension trap positions 6332 | -6/Lower Caves | Caught by Unaware searching for contraband prototypes 6343 | -6/Lower Caves | Entered another Lower Caves area 6369 | -6/Lower Caves | Encountered a Warlord checkpoint 6400 | -6/Lower Caves | Discovered new exit (range 5) 6674 | -6/Lower Caves | Discovered new exit (range 15) 6683 | -6/Lower Caves | Attracted the attention of an 0b10 outpost 6685 | -6/Lower Caves | Entered Zion 6701 | -6/Zion | Given A8's code to call for help 6711 | -6/Zion | Visited the Megawrench Repair Shop 6711 | -6/Zion | Megawrench repaired 11 parts 6726 | -6/Zion | Discovered new exit (range 21) 6765 | -6/Zion | Found Prototype Processor 6766 | -6/Zion | Identified Exp. Terrain Scan Processor 6769 | -6/Zion | Found Prototype Processor 6769 | -6/Zion | Identified Exp. Core Analyzer 6774 | -6/Zion | Found Prototype Processor 6774 | -6/Zion | Identified Exp. Signal Interpreter 6776 | -6/Zion | Found Prototype Hackware 6779 | -6/Zion | Found Prototype Processor 6780 | -6/Zion | Identified Exp. Target Analyzer 6785 | -6/Zion | Found Prototype Processor 6785 | -6/Zion | Identified Exp. Melee Analysis Suite 6846 | -6/Zion | Learned Factory interactive machine intel 6855 | -6/Zion | Learned Factory terminal intel 7019 | -6/Zion | Imprinted 7021 | -6/Zion | Declared Zion's savior 7167 | -6/Zion | Identified exit to Proximity Caves 7301 | -6/Zion | Entered Proximity Caves 7301 | -5/Proximity Caves | Accompanied by 4 allies 7341 | -5/Proximity Caves | Spotted B-75 Beast 7450 | -5/Proximity Caves | Destroyed B-75 Beast 7452 | -5/Proximity Caves | Lost 3 allies 7479 | -5/Proximity Caves | Spotter reported a threat 7493 | -5/Proximity Caves | Spotter reported a threat 7505 | -5/Proximity Caves | Learned location of 1 exit from Factory 7547 | -5/Proximity Caves | Spotter reported a threat 7561 | -5/Proximity Caves | Learned Factory stockpile data 7572 | -5/Proximity Caves | Discovered new exit (range 19) 7579 | -5/Proximity Caves | Identified exit to Factory 7602 | -5/Proximity Caves | Entered Factory 7602 | -5/Factory | Evolved 2 slots: Utility x2 7603 | -5/Factory | Identified exit to Upper Caves 7604 | -5/Factory | Identified exit to Factory 7606 | -5/Factory | Identified Exp. System Shield 7607 | -5/Factory | Loaded intel: 52 interactive machine locations 7608 | -5/Factory | Loaded intel: 26 terminal locations 7608 | -5/Factory | Identified exit to DSF 7635 | -5/Factory | Entered DSF 7659 | -5/DSF | Additional patrols routed to DSF 7703 | -5/DSF | Lost 6 parts (1p1n2u2w) 7728 | -5/DSF | Crushed by falling debris 7729 | -5/DSF | System corruption reached 10% 7744 | -5/DSF | Crushed by falling debris 7758 | -5/DSF | Crushed by falling debris 7763 | -5/DSF | Discovered exit to Factory (range 15) 7764 | -5/DSF | Core integrity fell below 50% 7796 | -5/DSF | Core integrity fell below 20% 7796 | -5/DSF | Entered Factory 7796 | -4/Factory | Evolved 2 slots: Propulsion x1, Utility x1 7822 | -4/Factory | Lost 12 parts (1p3n7u1w) 7930 | -4/Factory | Zion Thermal Resupply teleported in 8204 | -4/Factory | Core integrity fell below 50% 8270 | -4/Factory | Lost 8 parts (1p3n1u3w) 8341 | -4/Factory | Zion Heavy squad teleported in 8404 | -4/Factory | Found Launcher Loader 8419 | -4/Factory | Zion Heavy squad teleported in 8467 | -4/Factory | Lost 4 allies 8489 | -4/Factory | Core integrity fell below 20% 8496 | -4/Factory | Destroyed by X-82 Rainmaker with Heavy Flak Cannon Last Messages --------------- Slug penetrates H-77 Assassin. U-05 Engineer lays Concrete. Penetrated by Slug. Slug penetrates Subcomponent Replicator. U-05 Engineer lays Concrete. Slug penetrates Wall. Adv. Power Amplifier destroyed. U-05 Engineer lays Concrete. Imp. Linear Gravjet destroyed. U-05 Engineer lays Concrete. G-67 Veteran IFF system glitched. Impulse Thruster destroyed. Slug penetrates Subcomponent Replicator. H-77 Assassin knocked back. Knocked back. U-05 Engineer lays Concrete. Penetrated by Slug. Slug penetrates Wall. X-82 Rainmaker knocked back. [Achievement: Just Browsing] Map ----- +----------------------------------------------------+ | ##" ## #?????????????????????????? | | ?############+#### #?????????????????????????? | | ???????## # #?????????????????????????? | | ????????# # #?????????????????????????? | | ????????# # #?????????????????????????? | | ????????# # #?????????????????????????? | | ????????# + +?????????????????????????? | | ????????# # #?????????????????????????? | | ????????# # #?????????????????????????? | | ????##### # #?????????????????????????? | | ????# " # #?????????????????????????? | | ???##"""" """" #?? ?????????????????????? | | ???#" " # """???????????????????? | | ???#" % + """???????????????????? | | ???#" # """???????????????????? | | ???# % # # """???????????????????? | | ???# ! # #? ???????????????????? | | ???#" # #?? """???????????????????? | | ???#" # #???"""???????????????????? | | ???#" # #?????????????????????????? | | ???## # #?????????????????????????? | | ????# # #?????????????????????????? | | ????# # ##############????????????? | | ????# # # #????????????? | | ????#########"#### # #????????????? | | ???## ! # # @ #????????????? | | ???#" """"" # # x #????????????? | | ???## """" + /h h #????????????? | | ????# """ # #x""" g #????????????? | | ????# # # "" u #????????????? | | ????# """"" # %# " phg #????????????? | | ????# """" # *%# " " #????????????? | | ????# # ==# "" " #????????????? | | ????# % # # #????????????? | | ????# # H# #????????????? | | ????# # ##############????????????? | | ????# # ##########????????????????? | | ????#"#"########## # #????????????????? | | ????# ########### # """ #########????????? | | ????###?# # # """ + #????????? | | ????????# # # """ ####### #????????? | | ????????# + / #?????# #????????? | | ????????# # # """ #????## #????????? | | ????????# # # """ #????#" #????????? | | ????????# # # """ #??####"###??????? | | ????????# # # #??# %#??????? | | ????????# # ##+########?# ! % #??????? | | ????????# # # % %[##?????? | | ????????####### # " %="#####?? | | ??????????????## # " ##? | +----------------------------------------------------+ Best States ------------- Heat Dissipation 43 Energy Generation 28 Energy Capacity 445 Matter Stores 300 Matter Capacity 300 Sight Range 23 Robot Scan Range 15 Terrain Scan Range 20 Terrain Scan Density 10 ECM Strength 2 Cloak Strength 2 Power Amplification 30 Additional Mass Support 9 Armor Coverage 950 Utility Shielding 66 Weapon Shielding 33 Phase Shifting 5 Evasion (%) 63 Recoil Reduction 2 Defensive Hacking 16 Item Schematics ----------------- Cesium-ion Thruster | -8/Materials | Scanalyzed Hvy. Rocket Launcher | -6/Factory | Scanalyzed Matter Neutralizer | -6/Zion | Archive Hvy. Plasma Cannon | -6/Zion | Archive Mapping Drone Bay | -6/Zion | Archive Imp. Heavy Armor Plating | -6/Zion | Archive Imp. Focal Shield | -6/Zion | Archive Lrn. Missile Launcher | -6/Zion | Archive KE Penetrator | -6/Zion | Archive Angular Momentum Engine | -6/Zion | Archive Imp. Coolant Injector | -6/Zion | Archive Adv. Terrain Scanner | -6/Zion | Archive Adv. Actuator Array | -6/Zion | Archive Imp. Remote Datajack | -6/Zion | Archive 0b10 Decoder Chip [Generic] | -6/Zion | Archive Imp. Hardlight Generator | -6/Zion | Archive Imp. Kinecellerator | -6/Zion | Archive Robot Schematics ------------------ R-06 Scavenger | -6/Zion | Archive T-07 Excavator | -6/Zion | Archive A-02 Transporter | -6/Zion | Archive Fabricated ------------ Nothing Alien Tech Used ----------------- None Achievements -------------- Close Call Deconstruction Just Browsing Let's See Who's Tougher Short-term Sacrifices Significant Disruption The One Universal Adapter Unlikely Earthworm Challenges ------------ None Game ------ Seed PotentialSurgeInverter Manual? 0 Play Time 02:49:31 Cumulative 17.2 hours Start 2024.04.07 @ 09:07:00 End 2024.04.07 @ 12:03:47 Sessions 1 Manual Loads 0 Difficulty Rogue Special Mode None Game No. 9 Rogue 3 Adventurer 6 Explorer 0 Win Type - Total 0 Types 0/0/0/0/0/0/0/0/0 Lore% 21 Gallery% 27 Achievement% 21 Wizard Run 0 Options --------- Layout 1 ASCII 0 Keyboard 0 Movement Mouse Keybinds 0 Fullscreen 2 Font 32/SmallcapsGlow Map View 50x35 Zoom Use 0% Tactical HUD 0 Map Filters NONE Filters NONE Steam 1 RUN: 003ab6e5-ae5d-4349-84d7-1025be42118d